fUST/lending_fUST_20241031
["ID","MTS","AMOUNT","RATE_DAILY","PERIOD"]
[341112513,1730389838233,-344.71203813,0.00032054,5]
[341112514,1730389838243,-500.0,0.00032054,5]
[341112515,1730389838253,-500.0,0.00032054,5]
[341112516,1730389838262,-1708.23,0.00032054,5]
[341112517,1730389838272,-7378.56,0.00032054,3]
[341112518,1730389838282,-855.6,0.00032054,5]
[341112519,1730389838291,-500.0,0.00032054,5]
[341112520,1730389838301,-500.0,0.00032054,5]
[341112521,1730389838311,-607.2393598,0.00032054,5]
[341112522,1730389838322,-1273.16,0.00032054,5]
[341112523,1730389838331,-500.0,0.00032054,5]
[341112524,1730389838341,-1111.47,0.00032054,5]
[341112525,1730389838350,-500.0,0.00032054,5]
[341112526,1730389838360,-500.0,0.00032054,5]
[341112529,1730389838370,-500.0,0.00032054,5]
[341112531,1730389838379,-394.3168999,0.00032054,5]
[341112535,1730389838388,-962.59,0.00032054,5]
[341112539,1730389838397,-2528.17,0.00032054,5]
[341112542,1730389838408,-500.0,0.00032054,5]
[341112544,1730389838417,-500.0,0.00032054,5]
[341112546,1730389838427,-516.55,0.00032054,5]
[341112547,1730389838436,-500.0,0.00032054,5]
[341112549,1730389838445,-500.0,0.00032054,5]
[341112550,1730389838455,-500.0,0.00032054,5]
[341112551,1730389838465,-500.0,0.00032054,5]
[341112552,1730389838474,-500.0,0.00032073,5]
[341112553,1730389838483,-500.0,0.00032073,5]
[341112554,1730389838493,-500.0,0.00032073,5]
[341112555,1730389838502,-500.0,0.00032073,5]
[341112556,1730389838512,-500.0,0.00032073,5]
[341112557,1730389838521,-500.0,0.00032073,5]
[341112558,1730389838530,-500.35257048,0.00032073,5]
[341112559,1730389838539,-500.0,0.00032073,5]
[341112560,1730389838548,-500.0,0.00032073,5]
[341112561,1730389838559,-500.0,0.00032073,5]
[341112562,1730389838568,-2615.940851,0.00032073,7]
[341112563,1730389838577,-2615.940851,0.00032073,7]
[341112564,1730389838586,-958.315812,0.00032073,7]
[341112565,1730389838595,-958.315812,0.00032073,7]
[341112566,1730389838604,-14889.73506103,0.000321,14]
[341112607,1730389839530,-290.03937099,0.00030135,2]
[341112608,1730389839540,-275.67295058,0.00030135,2]
[341112609,1730389839549,-465.90176048,0.00030135,2]
[341112610,1730389839558,-500.0,0.00030136,3]
[341112611,1730389839568,-500.0,0.00030145,5]
[341112612,1730389839578,-500.0,0.0003041,3]
[341112613,1730389839587,-398.86208915,0.00030684,3]
[341112614,1730389839597,-500.0,0.00032073,5]
[341112615,1730389839606,-353.24916369,0.000321,14]
[341112645,1730389842003,-1707.9109115,0.000321,14]
[341112660,1730389843891,-570.4,0.00030136,5]
[341112661,1730389843900,-500.0,0.00030145,5]
[341112662,1730389843911,-109.54222715,0.00030145,2]
[341112663,1730389843924,-390.45777285,0.00030145,2]
[341112664,1730389843934,-500.0,0.00030145,5]
[341112665,1730389843944,-570.4,0.0003041,5]
[341112666,1730389843954,-500.0,0.00032073,5]
[341112667,1730389843965,-4470.41914775,0.000321,14]
[341112668,1730389843977,-2060.89063955,0.000321,14]
[341112684,1730389846767,-570.4,0.00030684,5]
[341112685,1730389846777,-570.4,0.00030958,5]
[341112686,1730389846786,-570.4,0.00031232,5]
[341112687,1730389846796,-570.4,0.00031506,5]
[341112688,1730389846805,-570.4,0.0003178,5]
[341112689,1730389846815,-570.4,0.00032054,5]
[341112690,1730389846824,-10523.89507648,0.000321,14]
[341112691,1730389846834,-329.61,0.000321,14]
[341112692,1730389846843,-351.222021,0.000321,7]
[341112693,1730389846852,-351.222021,0.000321,7]
[341112694,1730389846861,-153.90093,0.000321,7]
[341112695,1730389846873,-151.0,0.000321,7]
[341112696,1730389846882,-408.462668,0.000321,7]
[341112697,1730389846892,-408.462668,0.000321,7]
[341112698,1730389846901,-808.48946,0.000321,7]
[341112699,1730389846911,-808.48946,0.000321,7]
[341112700,1730389846922,-151.0,0.000321,7]
[341112701,1730389846939,-151.0,0.000321,7]
[341112702,1730389846949,-443.186649,0.000321,7]
[341112703,1730389846958,-443.186649,0.000321,7]
[341112704,1730389846966,-151.0,0.000321,7]
[341112705,1730389846975,-151.0,0.000321,7]
[341112706,1730389846985,-166.113313,0.000321,7]
[341112707,1730389846994,-166.113313,0.000321,7]
[341112708,1730389847004,-151.0,0.000321,7]
[341112709,1730389847013,-151.0,0.000321,7]
[341112710,1730389847022,-151.0,0.000321,7]
[341112711,1730389847031,-151.0,0.000321,7]
[341112712,1730389847119,-151.0,0.000321,7]
[341112713,1730389847130,-151.0,0.000321,7]
[341112714,1730389847139,-151.0,0.000321,7]
[341112715,1730389847148,-151.0,0.000321,7]
[341112716,1730389847157,-151.0,0.000321,7]
[341112718,1730389847166,-151.0,0.000321,7]
[341112720,1730389847176,-215.799507,0.000321,7]
[341112721,1730389847185,-215.799507,0.000321,7]
[341112722,1730389847194,-151.0,0.000321,7]
[341112723,1730389847205,-2702.589543,0.000321,7]
[341112724,1730389847217,-930.150721,0.000321,7]
[341112725,1730389847229,-2702.589543,0.000321,7]
[341112726,1730389847239,-151.0,0.000321,7]
[341112727,1730389847249,-2323.518958,0.000321,7]
[341112728,1730389847259,-2323.518958,0.000321,7]
[341112729,1730389847268,-456.555252,0.000321,5]
[341112730,1730389847277,-456.555252,0.000321,5]
[341112731,1730389847286,-4988.927166,0.000321,7]
[341112732,1730389847296,-4988.927166,0.000321,7]
[341112733,1730389847305,-328.663036,0.000321,7]
[341112734,1730389847315,-328.663036,0.000321,7]
[341112735,1730389847325,-281.885496,0.000321,7]
[341112737,1730389847336,-151.0,0.000321,7]
[341112738,1730389847346,-281.885496,0.000321,7]
[341112739,1730389847356,-151.0,0.000321,7]
[341112740,1730389847367,-151.0,0.000321,7]
[341112741,1730389847376,-151.0,0.000321,7]
[341112742,1730389847385,-1067.789561,0.000321,7]
[341112743,1730389847394,-1454.35,0.000321,30]
[341112744,1730389847403,-1616.12,0.000321,30]
[341112745,1730389847413,-1067.789561,0.000321,7]
[341112746,1730389847424,-151.0,0.000321,7]
[341112747,1730389847433,-151.0,0.000321,7]
[341112748,1730389847442,-151.0,0.000321,7]
[341112749,1730389847451,-193.347877,0.000321,7]
[341112750,1730389847461,-293.293594,0.000321,7]
[341112751,1730389847470,-276.66272,0.000321,7]
[341112752,1730389847480,-2100.301736,0.000321,7]
[341112753,1730389847490,-151.0,0.000321,7]
[341112754,1730389847499,-276.66272,0.000321,7]
[341112755,1730389847508,-934.670953,0.000321,7]
[341112756,1730389847518,-2307.704446,0.000321,7]
[341112757,1730389847528,-151.0,0.000321,7]
[341112758,1730389847538,-2307.704446,0.000321,7]
[341112759,1730389847548,-934.670953,0.000321,7]
[341112760,1730389847559,-151.0,0.000321,7]
[341112761,1730389847568,-151.0,0.000321,7]
[341112762,1730389847578,-1232.911589,0.000321,7]
[341112763,1730389847589,-151.0,0.000321,7]
[341112764,1730389847598,-1232.911589,0.000321,7]
[341112765,1730389847608,-151.0,0.000321,7]
[341112766,1730389847618,-2138.873068,0.000321,7]
[341112767,1730389847628,-2138.873068,0.000321,7]
[341112768,1730389847638,-312.04837,0.000321,7]
[341112769,1730389847648,-312.04837,0.000321,7]
[341112770,1730389847658,-175.493674,0.000321,7]
[341112771,1730389847667,-175.493674,0.000321,7]
[341112772,1730389847676,-151.0,0.000321,7]
[341112773,1730389847685,-1412.551349,0.000321,7]
[341112774,1730389847696,-1412.551349,0.000321,7]
[341112775,1730389847706,-1557.830329,0.000321,7]
[341112776,1730389847717,-1557.830329,0.000321,7]
[341112777,1730389847726,-1136.229747,0.000321,7]
[341112778,1730389847735,-1136.229747,0.000321,7]
[341112779,1730389847744,-660.662492,0.000321,7]
[341112780,1730389847757,-660.662492,0.000321,7]
[341112781,1730389847768,-151.0,0.000321,7]
[341112782,1730389847777,-823.0,0.00032107,2]
[341112783,1730389847789,-2615.940851,0.0003214,7]
[341112784,1730389847799,-2615.940851,0.0003214,7]
[341112785,1730389847808,-958.315812,0.0003214,7]
[341112786,1730389847818,-958.315812,0.0003214,7]
[341112787,1730389847827,-1651.97718325,0.0003214,2]
[341112788,1730389847836,-151.0,0.00032308,6]
[341112789,1730389847846,-1935.68,0.00032318,10]
[341112790,1730389847855,-151.0,0.00032324,7]
[341112791,1730389847864,-151.0,0.00032324,7]
[341112792,1730389847879,-634.248212,0.00032324,2]
[341112793,1730389847889,-167.192241,0.00032324,2]
[341112794,1730389847898,-171.23716,0.00032324,2]
[341112795,1730389847908,-182.810574,0.00032324,2]
[341112796,1730389847918,-389.944366,0.00032324,2]
[341112797,1730389847927,-291.742706,0.00032324,2]
[341112798,1730389847937,-196.966473,0.00032324,2]
[341112799,1730389847948,-173.506599,0.00032324,2]
[341112800,1730389847958,-1238.106766,0.00032324,2]
[341112801,1730389847967,-276.694108,0.00032328,7]
[341112802,1730389847976,-500.0,0.00032328,5]
[341112803,1730389847985,-543.23053733,0.00032328,5]
[341112804,1730389847995,-500.0,0.00032328,5]
[341112805,1730389848004,-714.27,0.00032328,5]
[341112806,1730389848015,-500.0,0.00032328,2]
[341112807,1730389848025,-350.23126577,0.00032328,5]
[341112808,1730389848034,-604.71,0.00032328,5]
[341112809,1730389848044,-500.0,0.00032328,5]
[341112810,1730389848054,-360.39165454,0.00032328,5]
[341112811,1730389848064,-1708.23,0.00032328,5]
[341112812,1730389848073,-500.0,0.00032328,5]
[341112813,1730389848083,-500.0,0.00032328,5]
[341112814,1730389848092,-1273.16,0.00032328,5]
[341112815,1730389848101,-500.0,0.00032328,5]
[341112816,1730389848112,-1111.47,0.00032328,5]
[341112817,1730389848121,-500.0,0.00032328,5]
[341112818,1730389848131,-480.47877786,0.00032328,5]
[341112819,1730389848140,-500.0,0.00032328,5]
[341112820,1730389848149,-962.59,0.00032328,5]
[341112821,1730389848158,-2528.17,0.00032328,5]
[341112822,1730389848169,-500.0,0.00032328,5]
[341112823,1730389848178,-500.0,0.00032328,5]
[341112824,1730389848188,-516.55,0.00032328,5]
[341112825,1730389848197,-500.0,0.00032328,5]
[341112826,1730389848207,-500.0,0.00032328,5]
[341112827,1730389848217,-561.18770045,0.00032328,5]
[341112828,1730389848227,-500.0,0.00032328,5]
[341112829,1730389848236,-570.4,0.00032328,5]
[341112830,1730389848245,-267.72,0.000324,14]
[341112831,1730389848255,-454.4015616,0.0003241,2]
[341112832,1730389848264,-151.0,0.00032601,7]
[341112833,1730389848275,-151.0,0.00032601,7]
[341112834,1730389848285,-328.663036,0.00032601,7]
[341112835,1730389848296,-328.663036,0.00032601,7]
[341112836,1730389848305,-281.885496,0.00032601,7]
[341112837,1730389848315,-281.885496,0.00032601,7]
[341112838,1730389848325,-151.0,0.00032601,7]
[341112839,1730389848334,-151.0,0.00032601,7]
[341112840,1730389848344,-151.0,0.00032601,7]
[341112841,1730389848353,-1067.789561,0.00032601,7]
[341112842,1730389848362,-1067.789561,0.00032601,7]
[341112843,1730389848372,-151.0,0.00032601,7]
[341112844,1730389848383,-151.0,0.00032601,7]
[341112845,1730389848392,-151.0,0.00032601,7]
[341112846,1730389848401,-276.66272,0.00032601,7]
[341112847,1730389848410,-2100.301736,0.00032601,7]
[341112848,1730389848420,-151.0,0.00032601,7]
[341112849,1730389848429,-276.66272,0.00032601,7]
[341112850,1730389848438,-934.670953,0.00032601,7]
[341112851,1730389848448,-2307.704446,0.00032601,7]
[341112852,1730389848458,-264.203421,0.00032601,7]
[341112853,1730389848467,-934.670953,0.00032601,7]
[341112854,1730389848477,-2307.704446,0.00032601,7]
[341112855,1730389848486,-151.0,0.00032601,7]
[341112856,1730389848496,-151.0,0.00032601,7]
[341112857,1730389848505,-151.0,0.00032601,7]
[341112858,1730389848515,-151.0,0.00032601,7]
[341112859,1730389848525,-2138.873068,0.00032601,7]
[341112860,1730389848535,-2138.873068,0.00032601,7]
[341112861,1730389848545,-312.04837,0.00032601,7]
[341112862,1730389848554,-312.04837,0.00032601,7]
[341112863,1730389848564,-175.493674,0.00032601,7]
[341112864,1730389848573,-175.493674,0.00032601,7]
[341112865,1730389848584,-151.0,0.00032601,7]
[341112866,1730389848594,-1412.551349,0.00032601,7]
[341112867,1730389848603,-1412.551349,0.00032601,7]
[341112868,1730389848613,-1557.830329,0.00032601,7]
[341112869,1730389848623,-1557.830329,0.00032601,7]
[341112870,1730389848633,-1136.229747,0.00032601,7]
[341112871,1730389848643,-1136.229747,0.00032601,7]
[341112872,1730389848652,-660.662492,0.00032601,7]
[341112873,1730389848662,-660.662492,0.00032601,7]
[341112874,1730389848673,-151.0,0.00032601,7]
[341112875,1730389848683,-151.0,0.00032602,7]
[341112876,1730389848693,-151.0,0.00032602,7]
[341112877,1730389848703,-351.222021,0.00032602,7]
[341112878,1730389848775,-351.222021,0.00032602,7]
[341112879,1730389848792,-151.0,0.00032602,7]
[341112880,1730389848802,-408.462668,0.00032602,7]
[341112881,1730389848812,-408.462668,0.00032602,7]
[341112882,1730389848821,-808.48946,0.00032602,7]
[341112883,1730389848831,-808.48946,0.00032602,7]
[341112884,1730389848841,-151.0,0.00032602,7]
[341112885,1730389848851,-151.0,0.00032602,7]
[341112886,1730389848861,-443.186649,0.00032602,7]
[341112887,1730389848873,-443.186649,0.00032602,7]
[341112888,1730389848884,-151.0,0.00032602,7]
[341112889,1730389848893,-151.0,0.00032602,7]
[341112890,1730389848903,-166.113313,0.00032602,7]
[341112891,1730389848912,-166.113313,0.00032602,7]
[341112892,1730389848925,-151.0,0.00032602,7]
[341112893,1730389848935,-151.0,0.00032602,7]
[341112894,1730389848946,-151.0,0.00032602,7]
[341112895,1730389848956,-151.0,0.00032602,7]
[341112896,1730389848966,-151.0,0.00032602,7]
[341112897,1730389848975,-151.0,0.00032602,7]
[341112898,1730389848985,-151.0,0.00032602,7]
[341112899,1730389848995,-151.0,0.00032602,7]
[341112900,1730389849005,-215.799507,0.00032602,7]
[341112901,1730389849015,-215.799507,0.00032602,7]
[341112902,1730389849026,-151.0,0.00032602,7]
[341112903,1730389849036,-930.150721,0.00032602,7]
[341112904,1730389849046,-2702.589543,0.00032602,7]
[341112905,1730389849056,-2702.589543,0.00032602,7]
[341112906,1730389849065,-500.0,0.00032602,5]
[341112907,1730389849075,-151.0,0.00032602,7]
[341112908,1730389849085,-2323.518958,0.00032602,7]
[341112909,1730389849095,-2323.518958,0.00032602,7]
[341112910,1730389849104,-456.555252,0.00032602,5]
[341112911,1730389849114,-456.555252,0.00032602,5]
[341112912,1730389849124,-4988.927166,0.00032602,7]
[341112913,1730389849134,-4988.927166,0.00032602,7]
[341112914,1730389849144,-151.0,0.00032602,7]
[341112915,1730389849153,-500.0,0.00032602,5]
[341112916,1730389849163,-714.27,0.00032602,5]
[341112917,1730389849173,-500.0,0.00032602,2]
[341112918,1730389849183,-2615.940851,0.00032602,7]
[341112919,1730389849192,-2615.940851,0.00032602,7]
[341112920,1730389849202,-500.0,0.00032602,5]
[341112921,1730389849212,-958.315812,0.00032602,7]
[341112922,1730389849222,-958.315812,0.00032602,7]
[341112923,1730389849232,-1708.23,0.00032602,5]
[341112924,1730389849242,-1232.911589,0.00032602,7]
[341112925,1730389849251,-1232.911589,0.00032602,7]
[341112926,1730389849261,-500.0,0.00032602,5]
[341112927,1730389849270,-500.0,0.00032602,5]
[341112928,1730389849281,-1273.16,0.00032602,5]
[341112929,1730389849291,-500.0,0.00032602,5]
[341112930,1730389849301,-1111.47,0.00032602,5]
[341112931,1730389849311,-500.0,0.00032602,5]
[341112932,1730389849321,-500.0,0.00032602,5]
[341112933,1730389849331,-962.59,0.00032602,5]
[341112934,1730389849341,-2528.17,0.00032602,5]
[341112935,1730389849351,-500.0,0.00032602,5]
[341112936,1730389849360,-500.0,0.00032602,5]
[341112937,1730389849370,-516.55,0.00032602,5]
[341112938,1730389849380,-500.0,0.00032602,5]
[341112939,1730389849389,-500.0,0.00032602,5]
[341112940,1730389849399,-500.0,0.00032602,5]
[341112941,1730389849408,-570.4,0.00032602,5]
[341112942,1730389849417,-160.0,0.0003265,4]
[341112943,1730389849427,-153.0,0.00032712,2]
[341112944,1730389849438,-153.0,0.00032712,2]
[341112945,1730389849448,-153.0,0.00032712,2]
[341112946,1730389849460,-153.0,0.00032712,2]
[341112947,1730389849470,-153.0,0.00032712,2]
[341112948,1730389849480,-634.248212,0.00032728,2]
[341112949,1730389849491,-171.23716,0.00032728,2]
[341112950,1730389849502,-182.810574,0.00032728,2]
[341112951,1730389849512,-389.944366,0.00032728,2]
[341112952,1730389849521,-1238.106766,0.00032728,2]
[341112953,1730389849531,-512.7844354,0.00032775,2]
[341112954,1730389849540,-1000.0,0.000328,3]
[341112955,1730389849551,-531.7150525,0.00032876,7]
[341112956,1730389849561,-151.0,0.00032876,7]
[341112957,1730389849571,-151.0,0.00032876,7]
[341112958,1730389849580,-351.222021,0.00032876,7]
[341112959,1730389849589,-351.222021,0.00032876,7]
[341112960,1730389849599,-151.0,0.00032876,7]
[341112961,1730389849608,-408.462668,0.00032876,7]
[341112962,1730389849617,-408.462668,0.00032876,7]
[341112963,1730389849626,-808.48946,0.00032876,7]
[341112964,1730389849635,-808.48946,0.00032876,7]
[341112965,1730389849645,-151.0,0.00032876,7]
[341112966,1730389849655,-151.0,0.00032876,7]
[341112967,1730389849665,-443.186649,0.00032876,7]
[341112968,1730389849676,-443.186649,0.00032876,7]
[341112969,1730389849686,-151.0,0.00032876,7]
[341112970,1730389849696,-151.0,0.00032876,7]
[341112971,1730389849706,-166.113313,0.00032876,7]
[341112972,1730389849715,-166.113313,0.00032876,7]
[341112973,1730389849725,-151.0,0.00032876,7]
[341112974,1730389849735,-151.0,0.00032876,7]
[341112975,1730389849744,-151.0,0.00032876,7]
[341112976,1730389849754,-151.0,0.00032876,7]
[341112977,1730389849764,-151.0,0.00032876,7]
[341112978,1730389849774,-151.0,0.00032876,7]
[341112979,1730389849784,-151.0,0.00032876,7]
[341112980,1730389849793,-151.0,0.00032876,7]
[341112981,1730389849803,-151.0,0.00032876,7]
[341112982,1730389849812,-151.0,0.00032876,7]
[341112983,1730389849822,-215.799507,0.00032876,7]
[341112984,1730389849831,-215.799507,0.00032876,7]
[341112985,1730389849840,-151.0,0.00032876,7]
[341112986,1730389849849,-930.150721,0.00032876,7]
[341112987,1730389849859,-2702.589543,0.00032876,7]
[341112988,1730389849868,-2702.589543,0.00032876,7]
[341112989,1730389849881,-253.08371422,0.00032876,5]
[341112990,1730389849891,-151.0,0.00032876,7]
[341112991,1730389849902,-2323.518958,0.00032876,7]
[341112992,1730389849912,-2323.518958,0.00032876,7]
[341112993,1730389849924,-456.555252,0.00032876,5]
[341112994,1730389849933,-456.555252,0.00032876,5]
[341112995,1730389849943,-4988.927166,0.00032876,7]
[341112996,1730389849953,-4988.927166,0.00032876,7]
[341112997,1730389849964,-328.663036,0.00032876,7]
[341112998,1730389849973,-328.663036,0.00032876,7]
[341112999,1730389849984,-281.885496,0.00032876,7]
[341113000,1730389849994,-151.0,0.00032876,7]
[341113001,1730389850004,-281.885496,0.00032876,7]
[341113002,1730389850013,-500.0,0.00032876,2]
[341113003,1730389850023,-500.0,0.00032876,5]
[341113004,1730389850032,-151.0,0.00032876,7]
[341113005,1730389850041,-714.27,0.00032876,5]
[341113006,1730389850051,-151.0,0.00032876,7]
[341113007,1730389850060,-151.0,0.00032876,7]
[341113008,1730389850071,-1067.789561,0.00032876,7]
[341113009,1730389850080,-210.17121906,0.00032876,2]
[341113010,1730389850090,-1067.789561,0.00032876,7]
[341113011,1730389850099,-151.0,0.00032876,7]
[341113012,1730389850109,-151.0,0.00032876,7]
[341113013,1730389850119,-151.0,0.00032876,7]
[341113014,1730389850128,-2615.940851,0.00032876,7]
[341113015,1730389850138,-2615.940851,0.00032876,7]
[341113016,1730389850147,-276.66272,0.00032876,7]
[341113017,1730389850157,-2100.301736,0.00032876,7]
[341113018,1730389850167,-151.0,0.00032876,7]
[341113019,1730389850178,-276.66272,0.00032876,7]
[341113020,1730389850187,-958.315812,0.00032876,7]
[341113021,1730389850196,-934.670953,0.00032876,7]
[341113022,1730389850205,-958.315812,0.00032876,7]
[341113023,1730389850215,-2307.704446,0.00032876,7]
[341113024,1730389850224,-2307.704446,0.00032876,7]
[341113025,1730389850234,-934.670953,0.00032876,7]
[341113026,1730389850244,-151.0,0.00032876,7]
[341113027,1730389850253,-1708.23,0.00032876,5]
[341113028,1730389850263,-151.0,0.00032876,7]
[341113029,1730389850337,-1232.911589,0.00032876,7]
[341113030,1730389850346,-1232.911589,0.00032876,7]
[341113031,1730389850355,-500.0,0.00032876,5]
[341113032,1730389850365,-500.0,0.00032876,5]
[341113033,1730389850374,-151.0,0.00032876,7]
[341113034,1730389850383,-2138.873068,0.00032876,7]
[341113035,1730389850392,-2138.873068,0.00032876,7]
[341113036,1730389850401,-312.04837,0.00032876,7]
[341113037,1730389850410,-312.04837,0.00032876,7]
[341113038,1730389850420,-1273.16,0.00032876,5]
[341113039,1730389850429,-500.0,0.00032876,5]
[341113040,1730389850439,-175.493674,0.00032876,7]
[341113041,1730389850448,-175.493674,0.00032876,7]
[341113042,1730389850458,-1111.47,0.00032876,5]
[341113043,1730389850468,-231.262078,0.00032876,7]
[341113044,1730389850477,-1412.551349,0.00032876,7]
[341113045,1730389850486,-500.0,0.00032876,5]
[341113046,1730389850496,-1412.551349,0.00032876,7]
[341113047,1730389850507,-500.0,0.00032876,5]
[341113048,1730389850517,-1000.0,0.00032876,2]
[341113049,1730389850526,-1000.0,0.00032876,2]
[341113050,1730389850535,-1000.0,0.00032876,2]
[341113051,1730389850544,-1000.0,0.00032876,2]
[341113052,1730389850553,-1000.0,0.00032876,2]
[341113053,1730389850563,-1000.0,0.00032876,2]
[341113054,1730389850572,-168.42004299,0.00032876,2]
[341113055,1730389850582,-1557.830329,0.00032876,7]
[341113056,1730389850591,-1557.830329,0.00032876,7]
[341113057,1730389850600,-962.59,0.00032876,5]
[341113058,1730389850610,-2528.17,0.00032876,5]
[341113059,1730389850620,-500.0,0.00032876,5]
[341113060,1730389850630,-500.0,0.00032876,5]
[341113061,1730389850639,-516.55,0.00032876,5]
[341113062,1730389850650,-1136.229747,0.00032876,7]
[341113063,1730389850659,-1136.229747,0.00032876,7]
[341113064,1730389850669,-500.0,0.00032876,5]
[341113065,1730389850679,-500.0,0.00032876,5]
[341113066,1730389850689,-660.662492,0.00032876,7]
[341113067,1730389850698,-660.662492,0.00032876,7]
[341113068,1730389850708,-500.0,0.00032876,5]
[341113069,1730389850719,-151.0,0.00032876,7]
[341113070,1730389850728,-570.4,0.00032876,5]
[341113071,1730389850738,-262.194364,0.00032877,120]
[341113072,1730389850748,-1000.0,0.00032877,30]
[341113073,1730389850757,-500.00000099,0.00033,2]
[341113074,1730389850766,-20584.86849305,0.00033,30]
[341113075,1730389850777,-1185.28252499,0.00033,14]
[341113076,1730389850786,-24874.83997496,0.00033,120]
[341113077,1730389850796,-200.0,0.00033,2]
[341113078,1730389850806,-151.0,0.00033,14]
[341113079,1730389850815,-151.0,0.00033,14]
[341113080,1730389850826,-351.222021,0.00033,14]
[341113081,1730389850836,-351.222021,0.00033,14]
[341113082,1730389850846,-151.0,0.00033,14]
[341113083,1730389850855,-408.462668,0.00033,14]
[341113084,1730389850864,-408.462668,0.00033,14]
[341113085,1730389850877,-808.48946,0.00033,14]
[341113086,1730389850887,-808.48946,0.00033,14]
[341113087,1730389850897,-151.0,0.00033,14]
[341113088,1730389850906,-151.0,0.00033,14]
[341113089,1730389850916,-443.186649,0.00033,14]
[341113090,1730389850927,-443.186649,0.00033,14]
[341113091,1730389850937,-151.0,0.00033,14]
[341113092,1730389850946,-175.996329,0.00033,14]
[341113093,1730389850957,-166.113313,0.00033,14]
[341113094,1730389850967,-166.113313,0.00033,14]
[341113095,1730389850977,-151.0,0.00033,14]
[341113096,1730389850986,-151.0,0.00033,14]
[341113097,1730389850996,-151.0,0.00033,14]
[341113098,1730389851006,-151.0,0.00033,14]
[341113099,1730389851015,-151.0,0.00033,14]
[341113100,1730389851024,-151.0,0.00033,14]
[341113101,1730389851034,-151.0,0.00033,14]
[341113102,1730389851044,-151.0,0.00033,14]
[341113103,1730389851053,-151.0,0.00033,14]
[341113104,1730389851062,-215.799507,0.00033,14]
[341113105,1730389851072,-215.799507,0.00033,14]
[341113106,1730389851081,-151.0,0.00033,14]
[341113107,1730389851090,-930.150721,0.00033,14]
[341113108,1730389851099,-2702.589543,0.00033,14]
[341113109,1730389851109,-2702.589543,0.00033,14]
[341113110,1730389851118,-176.308721,0.00033,14]
[341113111,1730389851128,-2323.518958,0.00033,14]
[341113112,1730389851137,-2323.518958,0.00033,14]
[341113113,1730389851147,-456.555252,0.00033,5]
[341113114,1730389851156,-456.555252,0.00033,5]
[341113115,1730389851166,-4988.927166,0.00033,14]
[341113116,1730389851177,-4988.927166,0.00033,14]
[341113117,1730389851186,-328.663036,0.00033,14]
[341113118,1730389851195,-328.663036,0.00033,14]
[341113119,1730389851205,-281.885496,0.00033,14]
[341113120,1730389851215,-151.0,0.00033,14]
[341113121,1730389851225,-281.885496,0.00033,14]
[341113122,1730389851234,-151.0,0.00033,14]
[341113123,1730389851244,-297.770524,0.00033,14]
[341113124,1730389851255,-151.0,0.00033,14]
[341113125,1730389851265,-1067.789561,0.00033,14]
[341113126,1730389851276,-1067.789561,0.00033,14]
[341113127,1730389851286,-151.0,0.00033,14]